bitfinex/quotes_SOLUSD_20220307
["timestamp","ask_amount","ask_price","bid_price","bid_amount"]
[1646680407812,6.0,83.006,82.97,14.43]
[1646680408009,6.024,83.005,82.97,14.43]
[1646680408209,6.25,83.004,82.97,14.43]
[1646680408410,6.025,83.003,82.97,14.43]
[1646680408612,6.25,83.002,82.97,14.43]
[1646680408811,6.025,83.001,82.97,14.43]
[1646680409013,6.25,83.0,82.97,14.43]
[1646680409210,6.025,82.999,82.97,14.43]
[1646680409411,40.47536636,82.998,82.97,14.43]
[1646680409612,6.025,82.997,82.97,14.43]
[1646680409813,6.25,82.996,82.97,14.43]
[1646680410212,6.25,82.996,82.96,18.0844]
[1646680412713,6.0,82.995,82.96,18.0844]
[1646680412913,0.25,82.994,82.95,32.5161]
[1646680413115,0.25,82.996,82.951,0.25]
[1646680415517,0.47470739,82.995,82.95,14.43]
[1646680415718,0.57466944,82.993,82.95,14.43]
[1646680415918,0.57466944,82.993,82.93,14.43]
[1646680415919,0.63371593,82.991,82.93,14.43]
[1646680416119,0.63371593,82.989,82.93,14.43]
[1646680416319,0.63371593,82.987,82.93,14.43]
[1646680416523,47.92153873,82.985,82.93,14.43]
[1646680416719,12.277,82.984,82.931,0.25]
[1646680418021,18.0921,82.98,82.93,14.43]
[1646680418229,12.277,82.979,82.93,14.43]
[1646680418822,12.277,82.979,82.913,22.809]
[1646680419024,18.0942,82.97,82.913,14.43]
[1646680419222,18.0942,82.97,82.91,14.43]
[1646680419223,6.84331953,82.969,82.91,14.43]
[1646680419422,0.70754409,82.967,82.91,14.43]
[1646680419622,0.70754409,82.965,82.91,14.43]
[1646680419824,6.95754409,82.965,82.91,14.43]
[1646680420022,0.70754409,82.963,82.91,32.5251]
[1646680420227,6.25,82.963,82.91,32.5251]
[1646680420421,0.25,82.963,82.91,32.5251]
[1646680421422,0.25,82.967,82.911,0.25]
[1646680421627,6.027,82.966,82.911,0.25]
[1646680421825,6.25,82.965,82.91,32.5251]
[1646680422024,6.027,82.964,82.91,14.43]
[1646680422223,18.0969,82.96,82.91,14.43]
[1646680422424,12.277,82.959,82.91,14.43]
[1646680423028,18.307,82.959,82.89,14.43]
[1646680423225,18.0987,82.95,82.891,0.25]
[1646680423425,0.41430867,82.948,82.891,0.25]
[1646680423726,6.029,82.947,82.891,0.25]
[1646680423926,0.4208146,82.945,82.891,0.25]
[1646680424128,6.03,82.944,82.891,0.25]
[1646680424328,6.25,82.943,82.891,0.25]
[1646680424527,6.03,82.942,82.891,0.25]
[1646680424728,6.25,82.941,82.891,0.25]
[1646680424928,6.03,82.94,82.891,0.25]
[1646680425132,6.25,82.939,82.891,0.25]
[1646680425331,6.03,82.938,82.891,0.25]
[1646680425530,6.25,82.937,82.891,0.25]
[1646680425731,6.25,82.936,82.891,0.25]
[1646680425932,6.25,82.939,82.891,0.25]
[1646680426231,6.25,82.939,82.9,18.0971]
[1646680426430,0.25,82.939,82.9,32.5271]
[1646680427032,0.25,82.946,82.9,32.5271]
[1646680427431,0.25,82.946,82.9,14.43]
[1646680428031,6.279,82.946,82.9,14.43]
[1646680428230,6.0,82.945,82.9,14.43]
[1646680428430,0.25,82.944,82.9,14.43]
[1646680428731,0.25,82.944,82.9,32.5273]
[1646680429533,0.25,82.945,82.9,32.5273]
[1646680431138,0.25,82.945,82.9,14.43]
[1646680431836,6.029,82.944,82.9,14.43]
[1646680432039,6.25,82.943,82.9,14.43]
[1646680432237,6.029,82.942,82.9,14.43]
[1646680432437,6.25,82.941,82.9,14.43]
[1646680432640,6.029,82.94,82.9,14.43]
[1646680432837,6.25,82.939,82.9,14.43]
[1646680433238,0.25,82.939,82.9,32.5276]
[1646680433863,0.25,82.944,82.9,14.43]
[1646680434163,0.25,82.945,82.9,14.43]
[1646680434563,0.25,82.946,82.9,14.43]
[1646680434960,6.029,82.945,82.9,14.43]
[1646680435161,6.25,82.944,82.9,14.43]
[1646680435362,6.029,82.943,82.9,14.43]
[1646680435561,6.0,82.942,82.9,14.43]
[1646680435762,6.0,82.944,82.9,14.43]
[1646680436163,6.0,82.947,82.9,14.43]
[1646680436767,0.25,82.946,82.9,14.43]
[1646680437564,6.029,82.945,82.9,14.43]
[1646680437764,6.25,82.944,82.9,14.43]
[1646680437966,18.1004,82.94,82.89,18.0983]
[1646680438167,0.5111039,82.938,82.882,6.03]
[1646680438367,0.5111039,82.938,82.883,0.25]
[1646680438967,12.28,82.939,82.883,0.25]
[1646680440165,12.28,82.939,82.882,0.25]
[1646680440864,6.25,82.939,82.882,0.25]
[1646680442776,6.03,82.938,82.882,0.25]
[1646680442975,6.25,82.937,82.882,0.25]
[1646680443175,6.03,82.936,82.882,0.25]
[1646680443475,44.93149683,82.934,82.882,0.25]
[1646680443675,12.28,82.933,82.882,0.25]
[1646680444978,6.25,82.933,82.882,0.25]
[1646680445177,0.25,82.933,82.882,0.25]
[1646680446781,6.25,82.933,82.882,0.25]
[1646680448282,6.25,82.933,82.881,24.6224]
[1646680448683,12.28,82.933,82.881,24.6224]
[1646680449385,18.102,82.93,82.881,24.6224]
[1646680449599,6.25,82.929,82.88,14.43]
[1646680449787,12.281,82.929,82.88,14.43]
[1646680450286,0.45596006,82.928,82.88,14.43]
[1646680450685,12.281,82.929,82.88,14.43]
[1646680451484,12.281,82.929,82.88,32.5298]
[1646680451686,6.25,82.929,82.88,32.5298]
[1646680451887,0.25,82.929,82.881,6.031]
[1646680452087,0.25,82.931,82.881,6.031]
[1646680452290,0.25,82.932,82.881,6.031]
[1646680453186,0.25,82.932,82.882,36.73997821]
[1646680453385,0.25,82.932,82.883,6.03]
[1646680454890,6.03,82.931,82.883,6.03]
[1646680455089,0.25,82.93,82.883,6.03]
[1646680455289,6.03,82.929,82.881,6.03]
[1646680455488,0.25,82.928,82.881,6.03]
[1646680455690,0.25,82.928,82.882,0.25]
[1646680455889,0.25,82.928,82.883,6.03]
[1646680456088,0.25,82.928,82.881,6.03]
[1646680456693,0.25,82.93,82.882,0.25]
[1646680456893,0.25,82.93,82.883,6.03]
[1646680457297,0.25,82.931,82.883,6.03]
[1646680457498,0.25,82.932,82.883,6.03]
[1646680457896,18.1021,82.93,82.883,6.03]
[1646680458096,0.25,82.929,82.881,6.03]
[1646680458296,12.28,82.929,82.88,14.43]
[1646680458598,0.4647873,82.927,82.88,14.43]
[1646680458801,0.4647873,82.925,82.875,24.7381]
[1646680459000,6.031,82.924,82.875,24.7381]
[1646680459301,6.25,82.923,82.875,24.7381]
[1646680459504,47.14305209,82.921,82.875,24.7381]
[1646680459699,30.3854,82.92,82.86,18.1042]
[1646680460124,6.25,82.92,82.861,6.032]
[1646680460522,0.25,82.92,82.861,6.032]
[1646680460723,0.25,82.92,82.862,9.08613526]
[1646680460923,0.25,82.92,82.871,37.44539971]
[1646680461125,0.25,82.92,82.88,14.43]
[1646680461324,0.25,82.92,82.881,6.281]
[1646680462223,47.14305209,82.921,82.89,18.0979]
[1646680462434,47.14305209,82.921,82.89,32.5279]
[1646680463426,47.14305209,82.921,82.89,14.43]
[1646680463725,0.25,82.92,82.89,14.43]
[1646680466027,0.25,82.92,82.89,32.5277]
[1646680466427,1.63482323,82.949,82.89,32.5277]
[1646680466626,6.25,82.948,82.891,6.279]
[1646680466827,6.0,82.947,82.891,6.279]
[1646680467528,1.63482323,82.953,82.892,123.73613526]
[1646680467729,1.63482323,82.964,82.894,120.9]
[1646680467931,45.63304071,82.963,82.896,120.9]
[1646680468128,45.63304071,82.963,82.911,120.9]
[1646680468328,45.63304071,82.963,82.92,14.43]
[1646680468528,45.63304071,82.963,82.921,0.25]
[1646680468929,6.277,82.962,82.921,0.25]
[1646680469230,45.63304071,82.963,82.921,0.25]
[1646680470130,45.63304071,82.963,82.93,18.0895]
[1646680470535,0.25,82.962,82.93,32.5195]
[1646680471333,0.25,82.962,82.931,0.25]
[1646680471733,0.25,82.962,82.94,18.0889]
[1646680471935,0.25,82.962,82.931,0.25]
[1646680472133,0.25,82.962,82.921,6.027]
[1646680472335,0.25,82.962,82.92,14.43]
[1646680473137,6.25,82.962,82.92,14.43]
[1646680473735,6.027,82.961,82.92,14.43]
[1646680474037,6.25,82.96,82.92,14.43]
[1646680474235,6.25,82.959,82.92,14.43]
[1646680474534,6.25,82.962,82.92,14.43]
[1646680474939,6.027,82.961,82.92,14.43]
[1646680475137,6.25,82.96,82.92,32.5233]
[1646680475741,6.0,82.959,82.92,32.5233]
[1646680475936,6.277,82.958,82.92,32.5233]
[1646680476137,6.0,82.957,82.92,32.5233]
[1646680476337,0.25,82.956,82.92,32.5233]
[1646680477239,0.25,82.961,82.92,32.5233]
[1646680478543,0.25,82.961,82.904,6.027]
[1646680478740,24.61370986,82.96,82.891,30.8381]
[1646680478940,121.73639385,82.958,82.88,14.43]
[1646680479140,121.79041698,82.954,82.88,14.43]
[1646680479341,0.89041698,82.951,82.88,14.43]
[1646680479540,161.5807803,82.95,82.88,14.43]
[1646680479741,0.89041698,82.947,82.88,14.43]
[1646680480039,0.89041698,82.945,82.88,14.43]
[1646680480240,6.03,82.944,82.88,14.43]
[1646680480541,0.89041698,82.942,82.88,14.43]
[1646680480742,18.99191698,82.94,82.88,32.5319]
[1646680480942,12.28,82.939,82.88,32.5319]
[1646680481145,6.03,82.939,82.88,32.5319]
[1646680481344,6.25,82.938,82.88,14.43]
[1646680481543,6.03,82.937,82.88,14.43]
[1646680481746,6.25,82.936,82.88,14.43]
[1646680482045,6.03,82.935,82.88,14.43]
[1646680482244,6.25,82.934,82.88,14.43]
[1646680482554,121.40568189,82.929,82.866,6.03]
[1646680482745,121.40568189,82.929,82.856,14.13952956]
[1646680482746,193.51,82.925,82.856,14.13952956]
[1646680482943,193.51,82.925,82.857,6.032]
[1646680482944,121.40568189,82.923,82.857,6.032]
[1646680483143,120.9,82.921,82.857,6.032]
[1646680483346,18.1087,82.91,82.857,6.032]
[1646680483545,6.25,82.909,82.857,6.032]
[1646680483750,6.032,82.908,82.857,6.032]
[1646680483961,6.25,82.907,82.857,6.032]
[1646680484647,0.25,82.907,82.857,6.032]
[1646680484847,38.9841849,82.899,82.857,6.032]
[1646680485048,6.25,82.898,82.857,6.032]
[1646680485450,6.25,82.898,82.857,5.61395181]
[1646680485651,6.25,82.898,82.839,18.2411]
[1646680485848,18.1109,82.89,82.831,24.7297]
[1646680486048,0.4081274,82.888,82.831,24.7297]
[1646680486251,6.4421274,82.888,82.831,24.7297]
[1646680486447,21.62427783,82.886,82.831,24.7297]
[1646680486648,0.4081274,82.884,82.831,24.7297]
[1646680486849,0.42830881,82.879,82.82,32.5432]
[1646680487051,0.42830881,82.877,82.82,27.5432]
[1646680487252,6.035,82.876,82.82,27.5432]
[1646680487448,6.25,82.875,82.82,27.5432]
[1646680487649,6.035,82.874,82.82,27.5432]
[1646680487849,38.9841849,82.872,82.82,27.5432]
[1646680488049,6.25,82.871,82.82,27.5432]
[1646680488251,6.40419445,82.87,82.821,0.25]
[1646680488550,0.25,82.869,82.821,0.25]
[1646680488752,6.035,82.868,82.821,0.25]
[1646680488949,6.25,82.867,82.821,0.25]
[1646680489549,0.25,82.867,82.821,0.25]
[1646680489750,6.285,82.867,82.821,0.25]
[1646680489949,6.0,82.866,82.821,0.25]
[1646680490153,0.25,82.865,82.821,0.25]
[1646680491256,6.285,82.867,82.821,0.25]
[1646680491453,6.0,82.866,82.82,9.43]
[1646680491652,6.285,82.865,82.817,23.7596]
[1646680491854,6.0,82.864,82.817,23.7596]
[1646680492053,6.285,82.863,82.817,23.7596]
[1646680492253,6.0,82.862,82.81,18.117]
[1646680492456,6.285,82.861,82.811,6.25]
[1646680492656,21.21615043,82.859,82.811,6.25]
[1646680492864,6.285,82.858,82.811,6.25]
[1646680493782,6.0,82.857,82.811,6.25]
[1646680494081,0.25,82.856,82.811,6.25]
[1646680494280,6.285,82.858,82.811,6.0]
[1646680494479,0.41229675,82.856,82.811,6.0]
[1646680494679,6.035,82.855,82.811,6.0]
[1646680494880,6.25,82.854,82.811,6.0]
[1646680495081,6.035,82.853,82.811,6.0]
[1646680495280,6.25,82.852,82.811,6.0]
[1646680495482,6.035,82.851,82.811,6.0]
[1646680495681,6.25,82.85,82.811,6.0]
[1646680495883,6.035,82.849,82.811,6.0]
[1646680496083,0.25,82.848,82.811,6.0]
[1646680497283,0.25,82.857,82.811,6.0]
[1646680497484,0.25,82.857,82.82,18.1148]
[1646680497685,21.21615043,82.859,82.821,0.25]
[1646680498083,21.21615043,82.859,82.821,3.08613526]
[1646680498286,21.21615043,82.859,82.822,2.83613526]
[1646680498584,18.1197,82.85,82.82,14.43]
[1646680498784,21.21615043,82.859,82.82,14.43]
[1646680499583,21.21615043,82.859,82.83,18.1097]
[1646680500186,21.21615043,82.859,82.82,14.43]
[1646680500989,6.035,82.875,82.82,32.5448]
[1646680501187,30.3014,82.903,82.821,123.98613526]
[1646680501387,6.0,82.902,82.822,144.8715]
[1646680501694,6.034,82.901,82.831,60.3]
[1646680501887,30.0005,82.927,82.841,120.9]
[1646680502086,41.58748614,82.926,82.86,18.1018]
[1646680502286,41.58748614,82.926,82.861,0.25]
[1646680502893,6.031,82.925,82.861,129.89]
[1646680503190,35.58748614,82.926,82.871,120.9]
[1646680503391,35.58748614,82.926,82.882,163.17847917]
[1646680503690,1.63482323,82.971,82.883,0.25]
[1646680503890,6.0,82.97,82.883,47.2801]
[1646680504091,6.029,82.969,82.883,47.2801]
[1646680504293,6.0,82.968,82.891,120.9]
[1646680504491,43.12277473,82.967,82.901,120.9]
[1646680504690,43.12277473,82.967,82.902,155.27452753]
[1646680504891,37.09377473,82.967,82.902,158.11066279]
[1646680505091,37.09377473,82.967,82.902,173.18763491]
[1646680505290,37.09377473,82.967,82.91,18.0866]
[1646680505491,37.09377473,82.967,82.911,0.25]
[1646680505792,0.25,82.966,82.911,121.15]
[1646680507090,0.25,82.966,82.92,18.092]
[1646680507292,0.25,82.966,82.92,14.43]
[1646680507692,6.027,82.965,82.92,14.43]
[1646680507892,6.25,82.964,82.92,14.43]
[1646680508092,6.027,82.963,82.92,14.43]
[1646680508291,6.25,82.962,82.92,14.43]
[1646680508493,6.027,82.961,82.92,14.43]
[1646680508694,0.25,82.96,82.92,14.43]
[1646680508893,6.027,82.959,82.92,14.43]
[1646680509096,0.25,82.958,82.92,14.43]
[1646680509295,6.027,82.957,82.92,14.43]
[1646680509500,0.25,82.956,82.891,17.91310738]
[1646680509695,0.42773222,82.954,82.9,14.43]
[1646680509898,6.029,82.953,82.892,0.25]
[1646680510096,6.25,82.952,82.9,18.0973]
[1646680510298,6.029,82.951,82.9,32.5273]
[1646680510496,23.3565606,82.95,82.9,32.5273]
[1646680510696,6.25,82.949,82.9,32.5273]
[1646680511197,6.0,82.948,82.901,0.25]
[1646680511400,23.1065606,82.95,82.91,18.0948]
[1646680512200,23.1065606,82.95,82.911,0.25]
[1646680512400,23.1065606,82.95,82.91,14.43]
[1646680512599,23.1065606,82.95,82.89,14.43]
[1646680512600,6.25,82.949,82.89,14.43]
[1646680512813,0.42449604,82.948,82.884,26.40216102]
[1646680513000,0.42449604,82.948,82.86,14.43]
[1646680513200,2.83613526,82.947,82.86,14.43]
[1646680513401,0.70209201,82.945,82.86,14.43]
[1646680513602,18.1023,82.94,82.86,32.5364]
[1646680513805,6.25,82.939,82.86,32.5364]
[1646680514200,120.9,82.938,82.861,0.25]
[1646680514403,0.411049,82.935,82.861,0.25]
[1646680514604,18.1029,82.93,82.87,18.1032]
[1646680514801,37.09377473,82.928,82.871,0.25]
[1646680515002,6.0,82.927,82.871,0.25]
[1646680515800,0.25,82.926,82.87,18.1037]
[1646680516001,0.25,82.926,82.871,0.25]
[1646680516201,0.25,82.926,82.861,0.25]
[1646680516703,0.25,82.926,82.861,40.7437929]
[1646680517204,0.25,82.926,82.88,18.1018]
[1646680518303,6.031,82.925,82.88,18.1018]
[1646680518504,6.031,82.925,82.87,18.1035]
[1646680518505,6.25,82.924,82.87,18.1035]
[1646680518704,6.031,82.923,82.86,14.43]
[1646680518903,6.25,82.922,82.84,14.43]
[1646680519106,0.43763089,82.92,82.841,0.25]
[1646680519304,6.032,82.919,82.841,0.25]
[1646680519505,6.25,82.918,82.841,0.25]
[1646680519708,6.032,82.917,82.841,0.25]
[1646680519905,6.25,82.916,82.841,0.25]
[1646680520107,6.032,82.915,82.841,0.25]
[1646680520305,6.25,82.914,82.841,0.25]
[1646680520506,6.033,82.913,82.841,0.25]
[1646680520706,0.44244741,82.911,82.841,0.25]
[1646680520909,0.44244741,82.909,82.841,0.25]
[1646680521209,6.033,82.908,82.85,18.108]
[1646680521414,6.25,82.907,82.85,14.43]
[1646680521612,120.9,82.904,82.823,2.83613526]
[1646680521908,120.9,82.894,82.81,14.43]
[1646680522108,0.83229017,82.869,82.81,14.43]
[1646680522314,0.83229017,82.867,82.81,14.43]
[1646680522509,6.035,82.866,82.81,14.43]
[1646680522708,6.25,82.865,82.81,14.43]
[1646680522908,6.035,82.864,82.81,14.43]
[1646680523108,6.25,82.863,82.81,14.43]
[1646680523308,6.035,82.862,82.81,14.43]
[1646680523507,6.25,82.861,82.81,14.43]
[1646680523809,6.035,82.86,82.811,0.25]
[1646680524007,6.25,82.859,82.811,0.25]
[1646680524214,6.035,82.858,82.81,32.5453]
[1646680524508,23.1065606,82.856,82.81,32.5453]
[1646680524707,6.25,82.855,82.81,32.5453]
[1646680524916,6.25,82.855,82.81,14.43]
[1646680525209,6.035,82.854,82.81,14.43]
[1646680525408,6.25,82.853,82.81,14.43]
[1646680525608,6.035,82.852,82.811,0.25]
[1646680525909,6.25,82.851,82.811,0.25]
[1646680526108,6.25,82.851,82.81,18.1169]
[1646680526307,0.25,82.851,82.811,0.25]
[1646680526809,6.035,82.85,82.811,0.25]
[1646680527008,6.25,82.849,82.811,0.25]
[1646680527612,0.25,82.849,82.811,0.25]
[1646680527912,6.035,82.853,82.82,18.1147]
[1646680528108,0.25,82.852,82.821,0.25]
[1646680528309,6.035,82.851,82.821,0.25]
[1646680528509,0.25,82.852,82.821,0.25]
[1646680528709,6.0,82.876,82.821,0.25]
[1646680529109,6.0,82.876,82.82,14.43]
[1646680529110,6.035,82.875,82.82,14.43]
[1646680529311,6.0,82.874,82.8,14.43]
[1646680529609,36.02592666,82.872,82.8,14.43]
[1646680529808,12.035,82.871,82.8,14.43]
[1646680530214,0.25,82.87,82.8,14.43]
[1646680530410,6.035,82.869,82.8,14.43]
[1646680530610,6.25,82.868,82.8,14.43]
[1646680530811,6.035,82.867,82.8,14.43]
[1646680531009,6.25,82.866,82.8,14.43]
[1646680531210,6.035,82.865,82.8,14.43]
[1646680531412,18.1214,82.85,82.8,32.5493]
[1646680531613,12.285,82.849,82.8,14.43]
[1646680531812,12.285,82.849,82.784,13.67123879]
[1646680532110,12.285,82.849,82.787,0.25]
[1646680532511,9.74440868,82.848,82.787,0.25]
[1646680532714,12.287,82.847,82.79,18.1213]
[1646680532911,12.287,82.847,82.791,0.25]
[1646680534112,6.25,82.847,82.791,0.25]
[1646680534933,6.037,82.846,82.791,0.25]
[1646680535115,6.25,82.845,82.791,0.25]
[1646680535318,6.037,82.844,82.791,0.25]
[1646680535517,6.25,82.843,82.791,0.25]
[1646680535815,6.037,82.842,82.791,0.25]
[1646680536017,6.25,82.841,82.791,0.25]
[1646680536216,6.037,82.84,82.791,0.25]
[1646680536418,6.25,82.839,82.791,0.25]
[1646680536718,6.037,82.838,82.791,0.25]
[1646680536917,6.25,82.837,82.791,0.25]
[1646680537118,35.06316031,82.835,82.791,0.25]
[1646680537318,12.287,82.834,82.8,18.1193]
[1646680537517,0.25,82.834,82.801,0.25]
[1646680537717,0.25,82.834,82.792,2.83613526]
[1646680537920,0.25,82.834,82.793,0.25]
[1646680538318,6.25,82.861,82.81,18.1137]
[1646680538518,40.13894353,82.86,82.81,18.1137]
[1646680538817,6.25,82.859,82.794,2.83613526]
[1646680539117,6.25,82.859,82.795,0.25]
[1646680539418,0.25,82.859,82.795,0.25]
[1646680539617,6.035,82.858,82.8,18.1191]
[1646680539818,0.25,82.857,82.801,0.25]
[1646680540717,0.25,82.859,82.801,0.25]
[1646680540918,6.25,82.859,82.801,0.25]
[1646680541320,18.12,82.85,82.801,0.25]
[1646680541519,12.285,82.849,82.79,18.1214]
[1646680541718,12.285,82.849,82.791,0.25]
[1646680542123,12.285,82.849,82.778,13.67123879]
[1646680542441,12.285,82.849,82.692,0.25]
[1646680542442,19.085,82.849,82.771,17.7722]
[1646680542643,18.122,82.84,82.78,32.5535]
[1646680542846,12.287,82.839,82.78,32.5535]
[1646680543443,11.66639181,82.838,82.781,0.25]
[1646680543643,12.287,82.837,82.781,0.25]
[1646680543842,18.1246,82.83,82.781,0.25]
[1646680544043,12.288,82.829,82.781,0.25]
[1646680545446,12.288,82.829,82.79,18.1212]
[1646680545845,6.25,82.829,82.79,18.1212]
[1646680546048,0.25,82.829,82.781,0.25]
[1646680546246,6.288,82.835,82.773,0.25]
[1646680546445,6.0,82.834,82.773,0.25]
[1646680546647,18.1244,82.83,82.78,18.1221]
[1646680546846,6.25,82.829,82.781,0.25]
[1646680547246,0.25,82.829,82.781,0.25]
[1646680547748,0.25,82.829,82.79,18.1209]
[1646680547948,0.25,82.831,82.79,18.1209]
[1646680548548,6.037,82.83,82.79,18.1209]
[1646680548747,0.25,82.829,82.79,18.1209]
[1646680549249,0.25,82.829,82.791,0.25]
[1646680549446,0.25,82.829,82.8,18.1174]
[1646680549848,0.25,82.835,82.8,18.1174]
[1646680550251,0.25,82.835,82.791,0.25]
[1646680550450,0.25,82.837,82.79,18.121]
[1646680550655,0.25,82.837,82.791,0.25]
[1646680550854,6.037,82.836,82.791,0.25]
[1646680551051,0.25,82.835,82.791,0.25]
[1646680551252,6.037,82.834,82.791,0.25]
[1646680551451,0.25,82.833,82.791,0.25]
[1646680551853,0.25,82.833,82.786,18.2582]
[1646680552153,0.25,82.833,82.8,18.1194]
[1646680552553,0.25,82.836,82.781,3.08613526]
[1646680552755,6.038,82.835,82.781,3.08613526]
[1646680552955,0.25,82.834,82.781,3.08613526]
[1646680553158,6.038,82.833,82.781,3.08613526]
[1646680553356,0.25,82.832,82.781,3.08613526]
[1646680553555,6.038,82.831,82.79,18.1214]
[1646680553756,0.25,82.83,82.791,0.25]
[1646680553959,6.037,82.829,82.791,0.25]
[1646680554256,0.25,82.828,82.772,27.30273526]
[1646680554658,0.25,82.828,82.772,24.4666]
[1646680554859,6.038,82.827,82.772,24.4666]
[1646680555058,6.25,82.826,82.772,24.4666]
[1646680555260,6.038,82.825,82.772,24.4666]
[1646680555458,6.25,82.824,82.772,24.4666]
[1646680555764,34.10394353,82.823,82.772,24.4666]
[1646680555960,6.25,82.822,82.772,24.4666]
[1646680556861,6.038,82.821,82.772,24.4666]
[1646680557062,6.25,82.82,82.772,24.4666]
[1646680557262,6.038,82.819,82.772,24.4666]
[1646680557461,6.25,82.818,82.772,24.4666]
[1646680557862,14.66,82.818,82.772,24.4666]
[1646680558062,6.038,82.817,82.772,24.4666]
[1646680558265,6.25,82.816,82.772,24.4666]
[1646680558462,6.039,82.815,82.78,18.1238]
[1646680558662,6.25,82.814,82.78,18.1238]
[1646680559264,6.0,82.813,82.78,18.1238]
[1646680559466,0.25,82.812,82.78,18.1238]
[1646680559670,0.25,82.814,82.78,18.1238]
[1646680560270,0.25,82.814,82.78,17.85126603]
[1646680561372,6.288,82.82,82.78,17.85126603]
[1646680561572,6.0,82.819,82.78,17.85126603]
[1646680561773,6.288,82.818,82.78,17.85126603]
[1646680561973,6.0,82.817,82.78,17.85126603]
[1646680562172,6.288,82.816,82.78,17.85126603]
[1646680562371,6.0,82.815,82.78,17.85126603]
[1646680562574,6.288,82.814,82.78,17.85126603]
[1646680562775,6.0,82.813,82.78,17.85126603]
[1646680562975,0.25,82.812,82.78,17.85126603]
[1646680564076,6.288,82.818,82.78,17.85126603]
[1646680564277,6.0,82.817,82.78,17.85126603]
[1646680564576,6.288,82.816,82.78,17.85126603]
[1646680564778,6.0,82.815,82.78,17.85126603]
[1646680564982,6.288,82.814,82.78,17.85126603]
[1646680565179,6.0,82.813,82.78,17.85126603]
[1646680565380,0.25,82.812,82.77,18.126]
[1646680565580,0.25,82.814,82.771,0.25]
[1646680566380,0.25,82.818,82.771,0.25]
[1646680566880,6.289,82.82,82.771,0.25]
[1646680567080,6.0,82.819,82.771,0.25]
[1646680567379,0.25,82.818,82.771,0.25]
[1646680567780,0.25,82.818,82.77,32.5554]
[1646680567982,6.039,82.817,82.753,13.67123879]
[1646680568180,127.15,82.816,82.753,13.67123879]
[1646680568381,127.69495083,82.815,82.739,13.67123879]
[1646680568584,6.25,82.814,82.74,6.0]
[1646680568802,6.79595083,82.813,82.74,6.0]